[Event "Titled Tuesday Blitz January 10 Late 2023"]
[White "Naroditsky, Daniel"]
[Black "Poltorak, Sebastian"]
[WhiteFideId "2026961"]
[BlackFideId "1199498"]
[WhiteElo "2618"]
[BlackElo "2354"]
[Result "1-0"]
[Round "01"]
[TimeControl "180+2"]
[Date "2023.01.10"]
[WhiteClock "0:01:19"]
[BlackClock "0:00:57"]

1. e4 {[%clk 0:00:00]}  c6 {[%clk 0:00:00]} 2. Nc3 {[%clk 0:02:57]}  d5 {[%clk 0:03:00]} 3. Qf3 {[%clk 0:02:53]}  e6 {[%clk 0:02:59]} 4. d4 {[%clk 0:02:54]}  dxe4 {[%clk 0:02:59]} 5. Qxe4 {[%clk 0:02:54]}  Nd7 {[%clk 0:02:56]} 6. Nf3 {[%clk 0:02:49]}  Ngf6 {[%clk 0:02:56]} 7. Qh4 {[%clk 0:02:48]}  Be7 {[%clk 0:02:57]} 8. Bg5 {[%clk 0:02:46]}  h6 {[%clk 0:02:56]} 9. Bd3 {[%clk 0:02:47]}  Nd5 {[%clk 0:02:55]} 10. Bxe7 {[%clk 0:02:45]}  Qxe7 {[%clk 0:02:54]} 11. Qg3 {[%clk 0:02:42]}  O-O {[%clk 0:02:54]} 12. O-O {[%clk 0:02:40]}  Nxc3 {[%clk 0:02:48]} 13. bxc3 {[%clk 0:02:38]}  Nf6 {[%clk 0:02:48]} 14. Ne5 {[%clk 0:02:39]}  Nd5 {[%clk 0:02:47]} 15. c4 {[%clk 0:02:38]}  Nf6 {[%clk 0:02:44]} 16. c5 {[%clk 0:02:27]}  Bd7 {[%clk 0:02:41]} 17. Rab1 {[%clk 0:02:18]}  Rab8 {[%clk 0:02:38]} 18. Nc4 {[%clk 0:02:06]}  Nd5 {[%clk 0:02:38]} 19. Be4 {[%clk 0:02:05]}  b6 {[%clk 0:02:29]} 20. cxb6 {[%clk 0:01:57]}  Nxb6 {[%clk 0:02:21]} 21. Ne5 {[%clk 0:01:57]}  Rfc8 {[%clk 0:02:20]} 22. Bxc6 {[%clk 0:01:49]}  Qd8 {[%clk 0:02:06]} 23. Qf3 {[%clk 0:01:49]}  f6 {[%clk 0:01:01]} 24. Bxd7 {[%clk 0:01:19]}  Rc3 {[%clk 0:00:57]} 1-0


[Site "https://www.chess.com"]

[Event "Titled Tuesday Blitz January 10 Late 2023"]
[White "Al-Tarboush, Ward"]
[Black "Duda, Jan-Krzysztof"]
[WhiteFideId "7601450"]
[BlackFideId "1170546"]
[WhiteElo "2256"]
[BlackElo "2724"]
[Result "0-1"]
[Round "01"]
[TimeControl "180+2"]
[Date "2023.01.10"]
[WhiteClock "0:00:15"]
[BlackClock "0:01:00"]

1. e4 {[%clk 0:00:00]}  e6 {[%clk 0:00:00]} 2. d4 {[%clk 0:02:59]}  c5 {[%clk 0:03:00]} 3. d5 {[%clk 0:02:59]}  exd5 {[%clk 0:03:00]} 4. exd5 {[%clk 0:02:58]}  d6 {[%clk 0:02:59]} 5. Nf3 {[%clk 0:02:58]}  a6 {[%clk 0:03:00]} 6. a4 {[%clk 0:02:57]}  Bg4 {[%clk 0:02:59]} 7. h3 {[%clk 0:02:57]}  Bh5 {[%clk 0:02:57]} 8. g4 {[%clk 0:02:56]}  Bg6 {[%clk 0:02:57]} 9. Bg2 {[%clk 0:02:55]}  Be7 {[%clk 0:02:57]} 10. O-O {[%clk 0:02:55]}  Nf6 {[%clk 0:02:54]} 11. c4 {[%clk 0:02:55]}  O-O {[%clk 0:02:53]} 12. Nc3 {[%clk 0:02:51]}  Ne4 {[%clk 0:02:52]} 13. Nxe4 {[%clk 0:02:51]}  Bxe4 {[%clk 0:02:50]} 14. Re1 {[%clk 0:02:49]}  Bxf3 {[%clk 0:02:51]} 15. Qxf3 {[%clk 0:02:49]}  Bf6 {[%clk 0:02:44]} 16. Qg3 {[%clk 0:02:48]}  Be5 {[%clk 0:02:37]} 17. Bf4 {[%clk 0:02:48]}  Nd7 {[%clk 0:02:35]} 18. Bxe5 {[%clk 0:02:43]}  Nxe5 {[%clk 0:02:35]} 19. b3 {[%clk 0:02:32]}  g5 {[%clk 0:02:36]} 20. Rad1 {[%clk 0:02:31]}  Qf6 {[%clk 0:02:23]} 21. Be4 {[%clk 0:02:23]}  Rab8 {[%clk 0:02:22]} 22. Bf5 {[%clk 0:02:22]}  b5 {[%clk 0:02:21]} 23. axb5 {[%clk 0:02:21]}  axb5 {[%clk 0:02:15]} 24. f4 {[%clk 0:02:22]}  gxf4 {[%clk 0:02:16]} 25. Qxf4 {[%clk 0:02:22]}  bxc4 {[%clk 0:02:16]} 26. Rf1 {[%clk 0:02:23]}  Qh4 {[%clk 0:02:14]} 27. bxc4 {[%clk 0:02:19]}  Rb2 {[%clk 0:02:05]} 28. Rd2 {[%clk 0:02:12]}  Rxd2 {[%clk 0:02:03]} 29. Qxd2 {[%clk 0:02:01]}  Qg3+ {[%clk 0:02:00]} 30. Qg2 {[%clk 0:02:01]}  Qxg2+ {[%clk 0:02:00]} 31. Kxg2 {[%clk 0:01:57]}  Nxc4 {[%clk 0:02:00]} 32. Rf4 {[%clk 0:01:58]}  Ne3+ {[%clk 0:01:59]} 33. Kf3 {[%clk 0:01:30]}  Nxd5 {[%clk 0:01:56]} 34. Re4 {[%clk 0:01:30]}  h6 {[%clk 0:01:56]} 35. h4 {[%clk 0:01:26]}  Kg7 {[%clk 0:01:55]} 36. g5 {[%clk 0:01:25]}  hxg5 {[%clk 0:01:54]} 37. hxg5 {[%clk 0:01:25]}  Ra8 {[%clk 0:01:55]} 38. Rh4 {[%clk 0:01:26]}  Ra3+ {[%clk 0:01:52]} 39. Kf2 {[%clk 0:01:24]}  Ne7 {[%clk 0:01:51]} 40. Bb1 {[%clk 0:01:24]}  Rb3 {[%clk 0:01:40]} 41. Rh7+ {[%clk 0:01:15]}  Kg8 {[%clk 0:01:40]} 42. Rh1 {[%clk 0:01:02]}  d5 {[%clk 0:01:38]} 43. Ke2 {[%clk 0:00:58]}  c4 {[%clk 0:01:31]} 44. Kd2 {[%clk 0:00:50]}  Rg3 {[%clk 0:01:30]} 45. Re1 {[%clk 0:00:49]}  Nc6 {[%clk 0:01:24]} 46. Re8+ {[%clk 0:00:48]}  Kg7 {[%clk 0:01:14]} 47. Rc8 {[%clk 0:00:30]}  Nd4 {[%clk 0:01:14]} 48. g6 {[%clk 0:00:30]}  fxg6 {[%clk 0:01:03]} 49. Rd8 {[%clk 0:00:15]}  c3+ {[%clk 0:01:02]} 50. Ke1 {[%clk 0:00:15]}  Rg1+ {[%clk 0:01:00]} 0-1


[Site "https://www.chess.com"]

[Event "Titled Tuesday Blitz January 10 Late 2023"]
[White "Vachier-Lagrave, Maxime"]
[Black "Kleiman, Jake"]
[WhiteFideId "623539"]
[BlackFideId "2020041"]
[WhiteElo "2742"]
[BlackElo "2399"]
[Result "1-0"]
[Round "01"]
[TimeControl "180+2"]
[Date "2023.01.10"]
[WhiteClock "0:00:23"]
[BlackClock "0:00:05"]

1. d4 {[%clk 0:00:00]}  Nf6 {[%clk 0:00:00]} 2. Bf4 {[%clk 0:03:00]}  e6 {[%clk 0:02:59]} 3. e3 {[%clk 0:02:53]}  d5 {[%clk 0:02:59]} 4. Nd2 {[%clk 0:02:50]}  Bd6 {[%clk 0:03:00]} 5. Ngf3 {[%clk 0:02:49]}  O-O {[%clk 0:03:01]} 6. c3 {[%clk 0:02:44]}  b6 {[%clk 0:03:01]} 7. h4 {[%clk 0:02:44]}  c5 {[%clk 0:02:52]} 8. Ne5 {[%clk 0:02:29]}  Qc7 {[%clk 0:02:50]} 9. h5 {[%clk 0:02:24]}  Nfd7 {[%clk 0:02:49]} 10. Ndf3 {[%clk 0:02:19]}  f6 {[%clk 0:02:44]} 11. Ng6 {[%clk 0:02:06]}  hxg6 {[%clk 0:02:39]} 12. Bxd6 {[%clk 0:01:40]}  Qxd6 {[%clk 0:01:42]} 13. hxg6 {[%clk 0:01:34]}  Re8 {[%clk 0:01:43]} 14. Nd2 {[%clk 0:01:34]}  Kf8 {[%clk 0:01:37]} 15. Rh7 {[%clk 0:01:03]}  f5 {[%clk 0:01:28]} 16. Qh5 {[%clk 0:01:01]}  Nf6 {[%clk 0:01:19]} 17. Qh4 {[%clk 0:01:01]}  Ba6 {[%clk 0:01:20]} 18. Nf3 {[%clk 0:01:01]}  Bxf1 {[%clk 0:01:06]} 19. Kxf1 {[%clk 0:00:54]}  Nc6 {[%clk 0:00:53]} 20. Ng5 {[%clk 0:00:54]}  Ne7 {[%clk 0:00:47]} 21. Rh8+ {[%clk 0:00:50]}  Neg8 {[%clk 0:00:36]} 22. Nf7 {[%clk 0:00:28]}  Qc7 {[%clk 0:00:35]} 23. Rd1 {[%clk 0:00:29]}  Ke7 {[%clk 0:00:27]} 24. c4 {[%clk 0:00:28]}  cxd4 {[%clk 0:00:25]} 25. cxd5 {[%clk 0:00:27]}  exd5 {[%clk 0:00:24]} 26. exd4 {[%clk 0:00:27]}  Kd7 {[%clk 0:00:20]} 27. Qg5 {[%clk 0:00:26]}  Qc2 {[%clk 0:00:17]} 28. Rc1 {[%clk 0:00:25]}  Qe2+ {[%clk 0:00:14]} 29. Kg1 {[%clk 0:00:24]}  Qg4 {[%clk 0:00:13]} 30. Qd2 {[%clk 0:00:24]}  Rac8 {[%clk 0:00:10]} 31. Ne5+ {[%clk 0:00:22]}  Rxe5 {[%clk 0:00:10]} 32. dxe5 {[%clk 0:00:22]}  Ne4 {[%clk 0:00:10]} 33. Qxd5+ {[%clk 0:00:23]}  Ke7 {[%clk 0:00:09]} 34. Qf7+ {[%clk 0:00:22]}  Kd8 {[%clk 0:00:05]} 35. Rxg8# {[%clk 0:00:23]} 1-0


[Site "https://www.chess.com"]

[Event "Titled Tuesday Blitz January 10 Late 2023"]
[White "Musovic, Armin"]
[Black "Sarana, Alexey"]
[WhiteFideId "939935"]
[BlackFideId "24133795"]
[WhiteElo "2261"]
[BlackElo "2685"]
[Result "1-0"]
[Round "01"]
[TimeControl "180+2"]
[Date "2023.01.10"]
[WhiteClock "0:00:13"]
[BlackClock "0:00:08"]

1. a3 {[%clk 0:00:00]}  e5 {[%clk 0:00:00]} 2. Nc3 {[%clk 0:02:57]}  f5 {[%clk 0:02:57]} 3. d4 {[%clk 0:02:58]}  e4 {[%clk 0:02:55]} 4. Nh3 {[%clk 0:02:58]}  d5 {[%clk 0:02:54]} 5. Bf4 {[%clk 0:02:56]}  h6 {[%clk 0:02:53]} 6. Nb5 {[%clk 0:02:49]}  Na6 {[%clk 0:02:49]} 7. c4 {[%clk 0:02:44]}  Nf6 {[%clk 0:02:47]} 8. e3 {[%clk 0:02:44]}  Be7 {[%clk 0:02:41]} 9. Nc3 {[%clk 0:02:43]}  c6 {[%clk 0:02:36]} 10. Be5 {[%clk 0:02:37]}  Nc7 {[%clk 0:02:32]} 11. Bxf6 {[%clk 0:02:35]}  Bxf6 {[%clk 0:02:03]} 12. Qh5+ {[%clk 0:02:26]}  Kf8 {[%clk 0:02:00]} 13. Nf4 {[%clk 0:02:26]}  Qe8 {[%clk 0:01:41]} 14. Qxe8+ {[%clk 0:02:23]}  Kxe8 {[%clk 0:01:25]} 15. cxd5 {[%clk 0:02:02]}  g5 {[%clk 0:01:26]} 16. Nh5 {[%clk 0:02:03]}  Be7 {[%clk 0:01:26]} 17. Bc4 {[%clk 0:01:52]}  Rf8 {[%clk 0:01:26]} 18. dxc6 {[%clk 0:01:46]}  bxc6 {[%clk 0:01:23]} 19. Rc1 {[%clk 0:01:29]}  Rb8 {[%clk 0:01:15]} 20. Rc2 {[%clk 0:01:29]}  Bd6 {[%clk 0:01:10]} 21. h4 {[%clk 0:01:30]}  g4 {[%clk 0:01:04]} 22. g3 {[%clk 0:01:22]}  Ke7 {[%clk 0:01:01]} 23. Kd2 {[%clk 0:01:19]}  Be6 {[%clk 0:01:00]} 24. Na4 {[%clk 0:01:13]}  Nd5 {[%clk 0:00:55]} 25. Rhc1 {[%clk 0:01:08]}  Bf7 {[%clk 0:00:50]} 26. Nf4 {[%clk 0:01:07]}  Rfd8 {[%clk 0:00:42]} 27. Bxd5 {[%clk 0:01:00]}  cxd5 {[%clk 0:00:29]} 28. Ne2 {[%clk 0:00:58]}  Rb3 {[%clk 0:00:29]} 29. Nc5 {[%clk 0:00:52]}  Rb6 {[%clk 0:00:28]} 30. Nc3 {[%clk 0:00:49]}  Rdb8 {[%clk 0:00:27]} 31. N3a4 {[%clk 0:00:46]}  Rb5 {[%clk 0:00:27]} 32. Na6 {[%clk 0:00:45]}  Rd8 {[%clk 0:00:27]} 33. b4 {[%clk 0:00:42]}  h5 {[%clk 0:00:25]} 34. Rc6 {[%clk 0:00:40]}  Rb7 {[%clk 0:00:22]} 35. N6c5 {[%clk 0:00:39]}  Rbb8 {[%clk 0:00:22]} 36. Ra6 {[%clk 0:00:37]}  Ra8 {[%clk 0:00:20]} 37. Nb7 {[%clk 0:00:34]}  Rd7 {[%clk 0:00:19]} 38. Nxd6 {[%clk 0:00:34]}  Rxd6 {[%clk 0:00:12]} 39. Rc7+ {[%clk 0:00:34]}  Rd7 {[%clk 0:00:13]} 40. Rxd7+ {[%clk 0:00:35]}  Kxd7 {[%clk 0:00:13]} 41. Nc5+ {[%clk 0:00:33]}  Kc7 {[%clk 0:00:14]} 42. Kc3 {[%clk 0:00:34]}  Be8 {[%clk 0:00:11]} 43. a4 {[%clk 0:00:31]}  Rc8 {[%clk 0:00:11]} 44. b5 {[%clk 0:00:31]}  Kb8 {[%clk 0:00:07]} 45. Kb4 {[%clk 0:00:30]}  Rc7 {[%clk 0:00:06]} 46. Re6 {[%clk 0:00:31]}  Rc8 {[%clk 0:00:06]} 47. Re7 {[%clk 0:00:29]}  f4 {[%clk 0:00:05]} 48. gxf4 {[%clk 0:00:28]}  Bg6 {[%clk 0:00:05]} 49. Na6+ {[%clk 0:00:27]}  Ka8 {[%clk 0:00:05]} 50. Nc5 {[%clk 0:00:27]}  Bf5 {[%clk 0:00:05]} 51. Rf7 {[%clk 0:00:22]}  Bg6 {[%clk 0:00:05]} 52. Rg7 {[%clk 0:00:21]}  Bf5 {[%clk 0:00:05]} 53. Rg5 {[%clk 0:00:21]}  Rf8 {[%clk 0:00:05]} 54. a5 {[%clk 0:00:21]}  Bc8 {[%clk 0:00:05]} 55. Rg7 {[%clk 0:00:21]}  Rf6 {[%clk 0:00:05]} 56. a6 {[%clk 0:00:20]}  Kb8 {[%clk 0:00:05]} 57. Re7 {[%clk 0:00:19]}  Rg6 {[%clk 0:00:04]} 58. Re8 {[%clk 0:00:18]}  g3 {[%clk 0:00:04]} 59. fxg3 {[%clk 0:00:16]}  Rxg3 {[%clk 0:00:03]} 60. Ne6 {[%clk 0:00:17]}  Rxe3 {[%clk 0:00:03]} 61. Kc5 {[%clk 0:00:15]}  Rc3+ {[%clk 0:00:02]} 62. Kxd5 {[%clk 0:00:15]}  e3 {[%clk 0:00:02]} 63. Nc5 {[%clk 0:00:15]}  Kc7 {[%clk 0:00:03]} 64. Re7+ {[%clk 0:00:14]}  Kb6 {[%clk 0:00:03]} 65. Re5 {[%clk 0:00:13]}  Bg4 {[%clk 0:00:03]} 66. f5 {[%clk 0:00:11]}  Ra3 {[%clk 0:00:03]} 67. f6 {[%clk 0:00:10]}  e2 {[%clk 0:00:02]} 68. f7 {[%clk 0:00:10]}  Rf3 {[%clk 0:00:03]} 69. Rxe2 {[%clk 0:00:09]}  Rxf7 {[%clk 0:00:03]} 70. Re5 {[%clk 0:00:09]}  Kxb5 {[%clk 0:00:04]} 71. Ne4 {[%clk 0:00:09]}  Rd7+ {[%clk 0:00:04]} 72. Nd6+ {[%clk 0:00:07]}  Kb6 {[%clk 0:00:04]} 73. Rg5 {[%clk 0:00:08]}  Kc7 {[%clk 0:00:05]} 74. Rg6 {[%clk 0:00:07]}  Bf3+ {[%clk 0:00:05]} 75. Kc5 {[%clk 0:00:08]}  Bg4 {[%clk 0:00:04]} 76. Nb5+ {[%clk 0:00:08]}  Kd8 {[%clk 0:00:02]} 77. Rg8+ {[%clk 0:00:09]}  Ke7 {[%clk 0:00:03]} 78. Rg7+ {[%clk 0:00:09]}  Kf6 {[%clk 0:00:03]} 79. Rxd7 {[%clk 0:00:10]}  Bxd7 {[%clk 0:00:03]} 80. Nxa7 {[%clk 0:00:10]}  Kf5 {[%clk 0:00:04]} 81. d5 {[%clk 0:00:11]}  Kg4 {[%clk 0:00:05]} 82. Nc6 {[%clk 0:00:11]}  Bc8 {[%clk 0:00:05]} 83. a7 {[%clk 0:00:11]}  Bb7 {[%clk 0:00:05]} 84. d6 {[%clk 0:00:11]}  Kxh4 {[%clk 0:00:06]} 85. d7 {[%clk 0:00:12]}  Kg3 {[%clk 0:00:06]} 86. d8=Q {[%clk 0:00:12]}  h4 {[%clk 0:00:07]} 87. Qg5+ {[%clk 0:00:12]}  Kh3 {[%clk 0:00:08]} 88. Na5 {[%clk 0:00:13]}  Ba8 {[%clk 0:00:08]} 89. Kd4 {[%clk 0:00:13]}  Kh2 {[%clk 0:00:07]} 90. Ke3 {[%clk 0:00:13]}  h3 {[%clk 0:00:07]} 91. Kf2 {[%clk 0:00:14]}  Bg2 {[%clk 0:00:08]} 92. a8=Q {[%clk 0:00:14]}  Bxa8 {[%clk 0:00:08]} 93. Qg1# {[%clk 0:00:13]} 1-0


[Site "https://www.chess.com"]

[Event "Titled Tuesday Blitz January 10 Late 2023"]
[White "Andreikin, Dmitry"]
[Black "Martynov, Pavel"]
[WhiteFideId "4158814"]
[BlackFideId "4101260"]
[WhiteElo "2729"]
[BlackElo "2414"]
[Result "1-0"]
[Round "01"]
[TimeControl "180+2"]
[Date "2023.01.10"]
[WhiteClock "0:02:12"]
[BlackClock "0:01:24"]

1. Nc3 {[%clk 0:00:00]}  c5 {[%clk 0:00:00]} 2. e4 {[%clk 0:02:58]}  e6 {[%clk 0:02:53]} 3. g3 {[%clk 0:02:57]}  Nc6 {[%clk 0:02:53]} 4. Bg2 {[%clk 0:02:54]}  g6 {[%clk 0:02:51]} 5. Nge2 {[%clk 0:02:53]}  Bg7 {[%clk 0:02:35]} 6. O-O {[%clk 0:02:52]}  Nge7 {[%clk 0:02:36]} 7. d3 {[%clk 0:02:51]}  d6 {[%clk 0:02:36]} 8. Be3 {[%clk 0:02:51]}  e5 {[%clk 0:02:34]} 9. f4 {[%clk 0:02:50]}  f5 {[%clk 0:02:33]} 10. fxe5 {[%clk 0:02:48]}  Nxe5 {[%clk 0:02:32]} 11. Bg5 {[%clk 0:02:44]}  h6 {[%clk 0:02:29]} 12. Bxe7 {[%clk 0:02:43]}  Qxe7 {[%clk 0:02:03]} 13. Nd5 {[%clk 0:02:42]}  Qf7 {[%clk 0:02:04]} 14. Nef4 {[%clk 0:02:41]}  O-O {[%clk 0:01:59]} 15. c3 {[%clk 0:02:20]}  g5 {[%clk 0:01:55]} 16. Nh5 {[%clk 0:02:20]}  Be6 {[%clk 0:01:29]} 17. Ne3 {[%clk 0:02:18]}  Ng4 {[%clk 0:01:24]} 18. Nxg4 {[%clk 0:02:12]} 1-0


[Site "https://www.chess.com"]

[Event "Titled Tuesday Blitz January 10 Late 2023"]
[White "Krallis, Christos"]
[Black "Sevian, Samuel"]
[WhiteFideId "4298896"]
[BlackFideId "2040506"]
[WhiteElo "2344"]
[BlackElo "2684"]
[Result "0-1"]
[Round "01"]
[TimeControl "180+2"]
[Date "2023.01.10"]
[WhiteClock "0:00:04"]
[BlackClock "0:01:03"]

1. d4 {[%clk 0:00:00]}  Nf6 {[%clk 0:00:00]} 2. Nf3 {[%clk 0:02:59]}  d5 {[%clk 0:02:56]} 3. c4 {[%clk 0:02:59]}  e6 {[%clk 0:02:54]} 4. Nc3 {[%clk 0:02:58]}  a6 {[%clk 0:02:54]} 5. e3 {[%clk 0:02:57]}  Be7 {[%clk 0:02:50]} 6. b3 {[%clk 0:02:55]}  O-O {[%clk 0:02:48]} 7. Bb2 {[%clk 0:02:38]}  b6 {[%clk 0:02:48]} 8. Bd3 {[%clk 0:02:38]}  dxc4 {[%clk 0:02:48]} 9. bxc4 {[%clk 0:02:35]}  Bb7 {[%clk 0:02:49]} 10. O-O {[%clk 0:02:35]}  c5 {[%clk 0:02:49]} 11. Qe2 {[%clk 0:02:33]}  cxd4 {[%clk 0:02:50]} 12. exd4 {[%clk 0:02:32]}  Nc6 {[%clk 0:02:50]} 13. Rad1 {[%clk 0:02:31]}  Rc8 {[%clk 0:02:51]} 14. Rfe1 {[%clk 0:02:29]}  Re8 {[%clk 0:02:50]} 15. Bb1 {[%clk 0:02:19]}  Na5 {[%clk 0:02:50]} 16. Ne5 {[%clk 0:02:16]}  Bb4 {[%clk 0:02:50]} 17. a3 {[%clk 0:02:03]}  Bf8 {[%clk 0:02:50]} 18. Qd3 {[%clk 0:01:59]}  g6 {[%clk 0:02:46]} 19. d5 {[%clk 0:01:53]}  exd5 {[%clk 0:02:44]} 20. Nxd5 {[%clk 0:01:50]}  Nxd5 {[%clk 0:02:43]} 21. cxd5 {[%clk 0:01:50]}  Bg7 {[%clk 0:02:34]} 22. d6 {[%clk 0:01:50]}  Qg5 {[%clk 0:02:31]} 23. Qg3 {[%clk 0:01:44]}  Qxg3 {[%clk 0:02:31]} 24. hxg3 {[%clk 0:01:35]}  Rcd8 {[%clk 0:02:29]} 25. Ba2 {[%clk 0:01:35]}  Bxe5 {[%clk 0:02:29]} 26. Bxe5 {[%clk 0:01:29]}  Bc6 {[%clk 0:02:19]} 27. g4 {[%clk 0:01:27]}  b5 {[%clk 0:02:11]} 28. Bf4 {[%clk 0:01:10]}  Rxe1+ {[%clk 0:02:05]} 29. Rxe1 {[%clk 0:00:57]}  Nc4 {[%clk 0:02:00]} 30. Re7 {[%clk 0:00:58]}  Nxd6 {[%clk 0:02:00]} 31. Rc7 {[%clk 0:00:49]}  Be8 {[%clk 0:01:58]} 32. f3 {[%clk 0:00:48]}  a5 {[%clk 0:01:51]} 33. Ra7 {[%clk 0:00:34]}  a4 {[%clk 0:01:46]} 34. Bg5 {[%clk 0:00:27]}  Rc8 {[%clk 0:01:43]} 35. Be7 {[%clk 0:00:23]}  Nc4 {[%clk 0:01:42]} 36. Bb4 {[%clk 0:00:20]}  Bc6 {[%clk 0:01:42]} 37. Bxc4 {[%clk 0:00:18]}  bxc4 {[%clk 0:01:41]} 38. Bc3 {[%clk 0:00:17]}  h6 {[%clk 0:01:42]} 39. Kf2 {[%clk 0:00:18]}  Rd8 {[%clk 0:01:39]} 40. Rc7 {[%clk 0:00:16]}  Bd5 {[%clk 0:01:39]} 41. Bf6 {[%clk 0:00:15]}  Re8 {[%clk 0:01:39]} 42. Rc5 {[%clk 0:00:14]}  Be6 {[%clk 0:01:33]} 43. Kg3 {[%clk 0:00:15]}  g5 {[%clk 0:01:28]} 44. f4 {[%clk 0:00:15]}  gxf4+ {[%clk 0:01:27]} 45. Kxf4 {[%clk 0:00:14]}  Kh7 {[%clk 0:01:27]} 46. g5 {[%clk 0:00:15]}  Kg6 {[%clk 0:01:27]} 47. Bc3 {[%clk 0:00:15]}  h5 {[%clk 0:01:27]} 48. Ra5 {[%clk 0:00:13]}  Rd8 {[%clk 0:01:23]} 49. Rxa4 {[%clk 0:00:09]}  Rd3 {[%clk 0:01:23]} 50. Be5 {[%clk 0:00:08]}  Rd2 {[%clk 0:01:23]} 51. g3 {[%clk 0:00:08]}  Rf2+ {[%clk 0:01:21]} 52. Ke3 {[%clk 0:00:05]}  Rf1 {[%clk 0:01:19]} 53. Ra5 {[%clk 0:00:05]}  Rd1 {[%clk 0:01:20]} 54. Rc5 {[%clk 0:00:05]}  Kxg5 {[%clk 0:01:15]} 55. Bf4+ {[%clk 0:00:04]}  Kf6 {[%clk 0:01:13]} 56. Rxh5 {[%clk 0:00:04]}  Rd3+ {[%clk 0:01:08]} 57. Kf2 {[%clk 0:00:03]}  Rxa3 {[%clk 0:01:08]} 58. Rc5 {[%clk 0:00:04]}  Rb3 {[%clk 0:01:08]} 59. Ke2 {[%clk 0:00:05]}  Rd3 {[%clk 0:01:04]} 60. Kf2 {[%clk 0:00:04]}  Bd5 {[%clk 0:01:04]} 61. Ke2 {[%clk 0:00:04]}  Kf5 {[%clk 0:01:03]} 62. Kf2 {[%clk 0:00:04]}  Ke4 {[%clk 0:01:04]} 63. Rc7 {[%clk 0:00:05]}  Rb3 {[%clk 0:01:04]} 64. Re7+ {[%clk 0:00:05]}  Be6 {[%clk 0:01:02]} 65. Rc7 {[%clk 0:00:04]}  Rb2+ {[%clk 0:01:02]} 66. Ke1 {[%clk 0:00:04]}  Kd3 {[%clk 0:01:03]} 67. Be5 {[%clk 0:00:04]}  Re2+ {[%clk 0:01:03]} 68. Kd1 {[%clk 0:00:04]}  Rxe5 {[%clk 0:01:03]} 0-1


[Site "https://www.chess.com"]

[Event "Titled Tuesday Blitz January 10 Late 2023"]
[White "Theodorou, Nikolas"]
[Black "Gavilan Diaz, Mario"]
[WhiteFideId "4262875"]
[BlackFideId "2260905"]
[WhiteElo "2591"]
[BlackElo "2271"]
[Result "1-0"]
[Round "01"]
[TimeControl "180+2"]
[Date "2023.01.10"]
[WhiteClock "0:02:15"]
[BlackClock "0:01:25"]

1. e4 {[%clk 0:00:00]}  e6 {[%clk 0:00:00]} 2. d4 {[%clk 0:02:56]}  d5 {[%clk 0:03:00]} 3. Nd2 {[%clk 0:02:50]}  c5 {[%clk 0:03:00]} 4. Ngf3 {[%clk 0:02:51]}  cxd4 {[%clk 0:02:59]} 5. Nxd4 {[%clk 0:02:52]}  Nf6 {[%clk 0:02:58]} 6. exd5 {[%clk 0:02:52]}  Qxd5 {[%clk 0:02:56]} 7. Nb5 {[%clk 0:02:52]}  Na6 {[%clk 0:02:51]} 8. Nc3 {[%clk 0:02:51]}  Qd8 {[%clk 0:02:48]} 9. a3 {[%clk 0:02:51]}  Be7 {[%clk 0:02:43]} 10. Qf3 {[%clk 0:02:52]}  O-O {[%clk 0:02:31]} 11. Bxa6 {[%clk 0:02:52]}  e5 {[%clk 0:02:30]} 12. Bxb7 {[%clk 0:02:52]}  Bg4 {[%clk 0:01:58]} 13. Qd3 {[%clk 0:02:34]}  Rb8 {[%clk 0:01:58]} 14. Qxd8 {[%clk 0:02:27]}  Rfxd8 {[%clk 0:01:47]} 15. Ba6 {[%clk 0:02:26]}  Bf5 {[%clk 0:01:48]} 16. Bd3 {[%clk 0:02:21]}  Bxd3 {[%clk 0:01:47]} 17. cxd3 {[%clk 0:02:21]}  Rxd3 {[%clk 0:01:46]} 18. O-O {[%clk 0:02:22]}  Rbd8 {[%clk 0:01:46]} 19. Nc4 {[%clk 0:02:23]}  e4 {[%clk 0:01:35]} 20. Ne5 {[%clk 0:02:21]}  R3d6 {[%clk 0:01:32]} 21. Be3 {[%clk 0:02:20]}  Re6 {[%clk 0:01:27]} 22. Nc4 {[%clk 0:02:21]}  Rc6 {[%clk 0:01:27]} 23. Na5 {[%clk 0:02:19]}  Rc7 {[%clk 0:01:26]} 24. Rfd1 {[%clk 0:02:20]}  Rb8 {[%clk 0:01:24]} 25. Rab1 {[%clk 0:02:20]}  h5 {[%clk 0:01:25]} 26. Bf4 {[%clk 0:02:15]} 1-0


[Site "https://www.chess.com"]